bitfinex/quotes_SOLUSD_20260105
["timestamp","ask_amount","ask_price","bid_price","bid_amount"]
[1767633037299,3.9047342,135.12,135.08,13.5]
[1767633037493,0.60619402,135.14,135.08,14.17983053]
[1767633037725,3.89479167,135.13,135.08,14.17983053]
[1767633039790,11.29553257,135.13,135.08,14.17983053]
[1767633041006,11.29553257,135.13,135.08,0.67983053]
[1767633042087,0.60112207,135.12,135.08,0.67983053]
[1767633044308,8.00245678,135.12,135.08,0.67983053]
[1767633045815,0.59615106,135.1,135.06,0.67983053]
[1767633045995,4.39194273,135.1,135.06,0.67983053]
[1767633046516,7.40247242,135.09,135.06,0.67983053]
[1767633046702,7.40247242,135.09,135.05,14.17983053]
[1767633047819,7.51141495,135.09,135.05,14.17983053]
[1767633048802,7.40214856,135.1,135.06,0.67983053]
[1767633048995,7.50059354,135.11,135.06,0.67983053]
[1767633049398,7.40159354,135.11,135.06,0.67983053]
[1767633050390,7.40106609,135.12,135.07,0.67983053]
[1767633052315,4.39691374,135.11,135.07,0.67983053]
[1767633052522,4.39691374,135.11,135.06,0.67983053]
[1767633052523,0.10402123,135.1,135.06,0.67983053]
[1767633052703,0.59615106,135.09,135.05,14.17983053]
[1767633053318,0.60619402,135.11,135.06,0.70649607]
[1767633053515,25.90313832,135.12,135.06,0.70649607]
[1767633053712,5.5028448,135.11,135.06,0.70649607]
[1767633053922,26.00213832,135.12,135.06,0.70649607]
[1767633054118,5.50302482,135.11,135.06,0.70649607]
[1767633054303,26.00213832,135.12,135.06,0.70649607]
[1767633054501,5.5051695,135.11,135.06,0.70649607]
[1767633054705,7.40144745,135.11,135.07,0.70649607]
[1767633056729,26.00190112,135.12,135.07,0.70649607]
[1767633057101,29.79769279,135.12,135.07,0.70649607]
[1767633057302,0.10894253,135.08,135.03,0.70649607]
[1767633058719,7.40356852,135.07,135.03,0.70649607]
[1767633060125,7.93749883,135.07,135.03,0.70649607]
[1767633060332,11.7332905,135.07,135.02,14.20649607]
[1767633060509,0.11376589,135.06,135.02,14.20649607]
[1767633060716,7.51832382,135.06,135.02,14.20649607]
[1767633061828,7.51832382,135.06,135.02,0.70649607]
[1767633063029,7.40376153,135.07,135.02,0.70649607]
[1767633063329,7.50276153,135.07,135.02,0.70649607]
[1767633063626,0.10402123,135.05,135.01,0.65297239]
[1767633063822,3.79579167,135.06,135.01,0.65297239]
[1767633063823,4.40198569,135.06,135.01,0.65297239]
[1767633064228,7.50366493,135.05,135.01,0.65297239]
[1767633064537,0.60112207,135.04,134.99,14.15297239]
[1767633064832,0.59615106,135.02,134.98,0.65297239]
[1767633065214,11.80665062,135.05,134.98,0.65297239]
[1767633065526,11.80665062,135.05,134.99,0.65297239]
[1767633065726,0.099,135.04,134.99,0.65297239]
[1767633066427,11.80665062,135.05,134.99,0.65297239]
[1767633066929,7.40432824,135.06,135.01,0.65297239]
[1767633068134,11.20011991,135.06,135.01,0.65297239]
[1767633071707,11.29911991,135.06,135.01,0.65297239]
[1767633073037,7.40432824,135.06,135.02,0.65297239]
[1767633073419,11.29836019,135.07,135.02,0.65297239]
[1767633074456,7.40322071,135.08,135.03,0.65297239]
[1767633074754,40.84863897,135.18,135.05,0.65297239]
[1767633074755,7.40153033,135.11,135.05,0.65297239]
[1767633075327,19.10646291,135.14,135.07,0.65297239]
[1767633075553,19.10646291,135.14,135.09,0.65297239]
[1767633075554,12.88628436,135.13,135.09,0.65297239]
[1767633075748,7.40028418,135.13,135.09,0.65297239]
[1767633077136,7.49928418,135.13,135.09,0.65297239]
[1767633077336,28.43062201,135.13,135.07,14.15297239]
[1767633077665,25.9999872,135.13,135.08,0.65297239]
[1767633080123,7.40028418,135.13,135.08,0.65297239]
[1767633081758,0.60619402,135.14,135.08,0.65297239]
[1767633081759,8.00600882,135.14,135.09,0.65297239]
[1767633084866,10.43664363,135.14,135.09,0.65297239]
[1767633085435,0.099,135.13,135.08,7.40288083]
[1767633085747,0.099,135.13,135.08,8.05585322]
[1767633087364,0.099,135.13,135.07,13.5]
[1767633087544,0.60112207,135.12,135.07,13.5]
[1767633087957,0.60112207,135.12,135.07,14.15297239]
[1767633088143,3.03682883,135.13,135.08,0.65297239]
[1767633088341,0.60619402,135.13,135.08,0.65297239]
[1767633088551,10.43763986,135.13,135.08,0.65297239]
[1767633089160,8.00700505,135.13,135.08,0.65297239]
[1767633091856,10.43763986,135.13,135.08,0.65297239]
[1767633094084,0.099,135.12,135.08,0.65297239]
[1767633094382,3.03175688,135.11,135.07,14.17928188]
[1767633094545,0.10894253,135.08,135.02,0.67928188]
[1767633094749,2.5444007,135.06,135.02,0.67928188]
[1767633095072,2.43063481,135.07,135.02,0.67928188]
[1767633095546,0.60619402,135.08,135.02,0.67928188]
[1767633095753,2.43063481,135.07,135.02,0.67928188]
[1767633096174,7.40411668,135.06,135.02,0.67928188]
[1767633096964,9.83475149,135.06,135.02,0.67928188]
[1767633099648,2.53465604,135.05,135.01,0.67928188]
[1767633100374,7.40521327,135.04,135.01,0.67928188]
[1767633100560,9.83584808,135.04,135.01,0.67928188]
[1767633100760,0.10402123,135.05,135.01,0.67928188]
[1767633100761,9.93958175,135.05,135.01,0.67928188]
[1767633105758,7.50894694,135.05,135.01,0.67928188]
[1767633105962,9.93958175,135.05,135.01,0.67928188]
[1767633106383,9.83556052,135.05,135.01,0.67928188]
[1767633106579,7.40492571,135.05,135.01,0.67928188]
[1767633106794,9.93456052,135.05,135.01,0.67928188]
[1767633107095,7.40492571,135.05,135.01,0.67928188]
[1767633107498,9.83556052,135.05,135.01,0.67928188]
[1767633108399,9.83499245,135.06,135.01,0.67928188]
[1767633108898,7.40435764,135.06,135.02,0.67928188]
[1767633109094,7.40379017,135.07,135.02,0.67928188]
[1767633109266,101.025,135.09,135.02,0.67928188]
[1767633109467,103.45563481,135.09,135.02,0.67928188]
[1767633109669,103.55463481,135.09,135.02,0.67928188]
[1767633110597,2.43063481,135.08,135.03,0.67928188]
[1767633112893,2.43063481,135.07,135.03,0.67928188]
[1767633113200,10.43504819,135.08,135.03,0.64928188]
[1767633113379,2.43063481,135.06,135.03,0.64928188]
[1767633113581,0.13372123,135.07,135.03,0.64928188]
[1767633113776,2.56435604,135.07,135.03,0.64928188]
[1767633113977,111.49450034,135.09,135.03,0.64928188]
[1767633114596,19.13904685,135.12,135.04,13.5]
[1767633114798,2.52963481,135.13,135.06,7.40411668]
[1767633115004,0.63619402,135.15,135.06,7.40411668]
[1767633115179,0.63619402,135.15,135.07,0.71204131]
[1767633115180,0.099,135.14,135.07,0.71204131]
[1767633115388,28.9620641,135.16,135.09,0.71204131]
[1767633115569,8.03483267,135.16,135.09,0.71204131]
[1767633115894,7.4973407,135.17,135.11,0.71204131]
[1767633116099,7.87768531,135.18,135.13,0.71204131]
[1767633116294,7.39768533,135.18,135.13,0.71204131]
[1767633117204,3.05619184,135.16,135.11,0.71204131]
[1767633117402,0.10953062,135.15,135.11,14.21204131]
[1767633118394,2.43063481,135.15,135.11,14.21204131]
[1767633118980,10.46104153,135.15,135.11,14.21204131]
[1767633119382,9.83021946,135.15,135.12,0.71204131]
[1767633119578,9.83021946,135.15,135.12,0.68204131]
[1767633119782,9.83021946,135.15,135.11,13.5]
[1767633119978,10.46133853,135.15,135.11,13.5]
[1767633120405,0.1337242,135.14,135.05,18.51098579]
[1767633120703,3.05677993,135.13,135.07,7.40324099]
[1767633120895,2.43063481,135.14,135.08,7.40290506]
[1767633121296,9.83073005,135.14,135.07,7.40356852]
[1767633121477,9.83073005,135.14,135.08,0.65944337]
[1767633121901,7.40009524,135.14,135.08,0.65944337]
[1767633122108,2.43063481,135.16,135.09,0.65944337]
[1767633122294,3.09682883,135.17,135.11,0.65944337]
[1767633122490,7.39827862,135.17,135.11,0.65944337]
[1767633122687,7.39776367,135.18,135.11,0.65944337]
[1767633122903,7.39714813,135.19,135.13,0.65944337]
[1767633123101,7.39714813,135.19,135.15,0.65944337]
[1767633123484,7.49563065,135.2,135.15,0.65944337]
[1767633124002,7.39663065,135.2,135.15,0.65944337]
[1767633126804,2.72963481,135.21,135.15,0.65944337]
[1767633126805,0.2,135.21,135.16,0.65944337]
[1767633127014,0.2,135.22,135.2,0.65944337]
[1767633127183,0.2,135.22,135.2,0.59944337]
[1767633128197,7.5953585,135.22,135.19,13.5]
[1767633128397,8.28394507,135.22,135.19,13.5]
[1767633128598,7.5953585,135.22,135.19,13.5]
[1767633128798,0.2,135.22,135.19,13.5]
[1767633129108,0.2,135.22,135.18,13.48]
[1767633129109,10.02600449,135.22,135.18,13.48]
[1767633129314,8.0971133,135.25,135.21,0.65944337]
[1767633129612,8.0971133,135.25,135.21,1e-08]
[1767633130405,3.1337038,135.24,135.18,13.48]
[1767633130594,0.70306899,135.23,135.18,13.48]
[1767633130798,0.70306899,135.22,135.18,13.48]
[1767633131009,0.70306899,135.21,135.18,13.48]
[1767633131187,3.1337038,135.21,135.18,13.48]
[1767633131387,8.0997201,135.2,135.15,5.51529]
[1767633131591,8.0997201,135.2,135.16,13.48]
[1767633131800,10.52967711,135.21,135.17,0.65944337]
[1767633135221,8.0990423,135.21,135.17,0.65944337]
[1767633138815,119.51130851,135.24,135.18,0.65944337]
[1767633138816,101.72806899,135.24,135.18,0.65944337]
[1767633139006,0.70306899,135.24,135.18,0.65944337]
[1767633139801,8.09753549,135.24,135.18,8.05684426]
[1767633140104,8.09753549,135.24,135.19,0.65944337]
[1767633140306,8.09753549,135.24,135.2,14.13944337]
[1767633141203,0.70306899,135.23,135.2,14.13944337]
[1767633141811,7.3944665,135.24,135.2,14.13944337]
[1767633142016,8.09753549,135.24,135.2,14.13944337]
[1767633143599,0.70306899,135.25,135.21,0.65944337]
[1767633144418,0.70306899,135.23,135.2,13.48]
[1767633145002,0.70306899,135.23,135.2,14.13944337]
[1767633145217,0.2,135.26,135.21,0.65944337]
[1767633146216,4.69359695,135.26,135.21,0.65944337]
[1767633146794,8.2962839,135.26,135.21,0.65944337]
[1767633147009,12.08681186,135.26,135.21,0.65944337]
[1767633147716,0.70306899,135.25,135.21,0.65944337]
[1767633148108,0.70306899,135.24,135.2,14.13944337]
[1767633148811,8.09682691,135.25,135.21,0.65944337]
[1767633150921,0.69461797,135.24,135.2,13.48]
[1767633151111,0.69461797,135.23,135.2,13.48]
[1767633153110,4.48514593,135.22,135.2,13.48]
[1767633153314,7.39483994,135.23,135.17,0.66467831]
[1767633153315,0.69461797,135.21,135.17,0.66467831]
[1767633153516,0.69461797,135.22,135.18,7.39726348]
[1767633153744,0.69461797,135.22,135.19,7.39698945]
[1767633154036,108.4189851,135.25,135.21,0.66467831]
[1767633154037,109.11360307,135.25,135.21,0.66467831]
[1767633154624,0.69461797,135.24,135.21,0.66467831]
[1767633154926,0.69461797,135.24,135.2,14.14467831]
[1767633155142,0.69461797,135.24,135.21,0.66467831]
[1767633155704,0.69461797,135.24,135.2,14.14467831]
[1767633158615,0.69461797,135.24,135.21,0.66467831]
[1767633159039,8.08897007,135.24,135.21,0.66467831]
[1767633159414,8.08897007,135.24,135.2,14.14467831]
[1767633159850,0.69461797,135.23,135.2,14.14467831]
[1767633161230,8.08897007,135.24,135.2,0.66467831]
[1767633161614,18.68360466,135.26,135.21,0.66467831]
[1767633161615,8.28819897,135.26,135.21,0.66467831]
[1767633161818,8.2878396,135.26,135.21,0.66467831]
[1767633162646,8.2878396,135.26,135.22,0.66467831]
[1767633164411,8.2878396,135.26,135.22,14.14467831]
[1767633165825,0.69461797,135.25,135.22,14.14467831]
[1767633166627,0.69461797,135.25,135.22,14.11467832]
[1767633168831,0.69461797,135.24,135.2,14.14467831]
[1767633169628,0.69461797,135.24,135.2,0.66467831]
[1767633171640,0.69461797,135.24,135.2,14.14467831]
[1767633173256,0.69461797,135.24,135.2,21.54087359]
[1767633173932,0.69461797,135.24,135.21,0.69833248]
[1767633174127,0.69258113,135.25,135.21,0.69833248]
[1767633174330,8.28592755,135.26,135.21,0.69833248]
[1767633174641,0.69258113,135.25,135.21,0.69833248]
[1767633176148,8.28592755,135.26,135.21,0.69833248]
[1767633176658,0.1,135.28,135.25,0.69833248]
[1767633176840,7.49210817,135.28,135.25,0.69833248]
[1767633177155,8.1846893,135.28,135.24,14.17833248]
[1767633177530,11.97521726,135.28,135.24,14.17833248]
[1767633178823,4.58310909,135.28,135.24,14.17833248]
[1767633179224,4.58310909,135.28,135.25,0.69833248]
[1767633179545,0.1,135.28,135.25,0.69833248]
[1767633185442,0.1,135.28,135.26,0.70937422]
[1767633190262,0.82374786,135.28,135.24,14.18937422]
[1767633190552,0.82374786,135.28,135.25,8.10306087]
[1767633190761,0.82374786,135.28,135.25,8.07306088]
[1767633191235,0.1,135.28,135.25,7.39368665]
[1767633191436,0.82374786,135.28,135.24,20.87397932]
[1767633192760,0.82374786,135.28,135.25,0.70937422]
[1767633194063,0.1,135.28,135.25,0.70937422]
[1767633196458,0.82374786,135.28,135.25,0.70937422]
[1767633196641,0.1,135.28,135.26,14.18937422]
[1767633196964,0.1,135.28,135.26,14.1009571]
[1767633198141,0.1,135.28,135.26,13.39158288]
[1767633198470,4.61427582,135.28,135.26,13.39158288]
[1767633198658,3.24743733,135.28,135.26,13.39158288]
[1767633198980,0.72374786,135.27,135.26,13.39158288]
[1767633199159,0.72374786,135.26,135.24,13.48]
[1767633201367,0.72374786,135.27,135.24,14.18937422]
[1767633203474,0.72374786,135.27,135.24,14.15937423]
[1767633204276,0.72374786,135.26,135.21,8.10495584]
[1767633204567,0.72374786,135.24,135.22,13.48]
[1767633207277,0.72374786,135.27,135.23,0.70937422]
[1767633209573,0.72374786,135.26,135.23,0.70937422]
[1767633212901,0.65755407,135.25,135.22,13.48]
[1767633213170,0.65755407,135.24,135.22,13.48]
[1767633213378,0.65755407,135.23,135.22,13.48]
[1767633216075,0.65755407,135.23,135.19,0.66842892]
[1767633216272,0.65755407,135.23,135.19,14.14842892]
[1767633216490,0.65755407,135.22,135.19,13.48]
[1767633219576,3.08124354,135.22,135.19,13.48]
[1767633220576,0.65755407,135.22,135.19,14.14842892]
[1767633222685,3.08124354,135.22,135.19,14.14842892]
[1767633222896,0.65755407,135.21,135.19,13.48]
[1767633223067,0.65755407,135.2,135.19,13.48]
[1767633223264,0.65755407,135.2,135.17,14.14842892]
[1767633223662,3.08124354,135.2,135.17,13.48]
[1767633224806,0.65755407,135.19,135.17,13.48]
[1767633224977,3.08124354,135.2,135.17,13.48]
[1767633225799,3.08124354,135.19,135.17,13.48]
[1767633225988,0.65755407,135.18,135.15,14.14842892]
[1767633226314,3.08124354,135.18,135.15,14.14842892]
[1767633226682,2.42368947,135.18,135.16,0.66842892]
[1767633226886,3.08124354,135.19,135.16,0.66842892]
[1767633231999,0.65755407,135.18,135.15,14.14842892]
[1767633232204,3.08124354,135.17,135.15,13.48]
[1767633232502,7.39590266,135.21,135.16,0.66842892]
[1767633232811,9.81959213,135.21,135.17,0.66842892]
[1767633233303,2.42368947,135.21,135.17,0.66842892]
[1767633234508,3.1011155,135.21,135.17,0.66842892]
[1767633234805,2.83024015,135.2,135.17,0.66842892]
[1767633236390,2.42368947,135.2,135.17,0.66842892]
[1767633236592,3.1011155,135.21,135.17,0.66842892]
[1767633237302,0.67742603,135.21,135.17,0.66842892]
[1767633237498,2.83024015,135.23,135.19,0.666631]
[1767633237695,3.09840675,135.22,135.19,0.666631]
[1767633239005,2.83292182,135.21,135.18,14.146631]
[1767633239189,3.0957519,135.2,135.18,13.48]
[1767633240604,0.67206243,135.2,135.18,13.48]
[1767633240796,10.48508522,135.21,135.18,13.48]
[1767633241487,8.06139575,135.21,135.18,13.48]
[1767633241687,10.48508522,135.21,135.18,13.48]
[1767633241899,10.48508522,135.21,135.18,14.16906344]
[1767633241900,0.66517727,135.21,135.18,14.16906344]
[1767633242109,10.48440733,135.22,135.18,14.16906344]
[1767633242304,0.41867695,135.21,135.18,14.16906344]
[1767633244806,10.23833132,135.21,135.18,14.16906344]
[1767633247604,0.66271227,135.2,135.18,13.48]
[1767633248618,0.66271227,135.2,135.17,0.68906344]
[1767633249491,2.42368947,135.23,135.18,0.68906344]
[1767633249813,2.42368947,135.23,135.19,14.16906344]
[1767633249814,0.66271227,135.22,135.19,14.16906344]
[1767633250122,3.08886674,135.23,135.19,14.16906344]
[1767633251607,7.3948465,135.23,135.2,0.68906344]
[1767633251918,9.81853597,135.23,135.2,0.68906344]
[1767633252418,10.23721292,135.23,135.2,0.68906344]
[1767633252909,103.86736642,135.25,135.2,0.68906344]
[1767633253103,2.84236642,135.25,135.2,0.68906344]
[1767633253904,0.66271227,135.24,135.2,0.68906344]
[1767633254794,0.66271227,135.24,135.2,8.085493]
[1767633255108,0.66271227,135.24,135.21,0.68906344]
[1767633256021,8.05904576,135.25,135.21,0.68906344]
[1767633256543,0.41867695,135.24,135.21,0.68906344]
[1767633258544,0.66271227,135.23,135.2,0.68906344]
[1767633259723,10.48313486,135.24,135.2,0.68906344]
[1767633260112,0.41867695,135.22,135.19,14.16906344]
[1767633260313,2.42368947,135.23,135.2,0.68906344]
[1767633260526,3.78977833,135.23,135.2,0.68906344]
[1767633260711,0.4211173,135.21,135.19,13.48]
[1767633262129,11.85072325,135.22,135.19,13.48]
[1767633263031,4.20845528,135.21,135.19,13.48]
[1767633263537,0.66271227,135.2,135.17,0.68906344]
[1767633264420,11.85091686,135.21,135.17,0.68906344]
[1767633265209,4.4524906,135.19,135.16,13.48]
[1767633265721,4.21089563,135.18,135.16,13.48]
[1767633270030,4.45007466,135.17,135.14,0.68906344]
[1767633270425,0.66029633,135.17,135.14,0.68906344]
[1767633270630,4.45007466,135.17,135.14,0.68906344]
[1767633272539,4.21328742,135.16,135.13,0.67155637]
[1767633272734,4.15328743,135.16,135.13,0.67155637]
[1767633274019,3.78977833,135.15,135.12,0.67155637]
[1767633275337,4.12926713,135.15,135.12,0.67155637]
[1767633275714,3.78977833,135.14,135.11,34.26712611]
[1767633276641,4.47148688,135.14,135.11,34.26712611]
[1767633277330,11.8112393,135.14,135.11,34.26712611]
[1767633277833,4.13268933,135.13,135.11,33.59556974]
[1767633278423,4.07268934,135.13,135.11,33.59556974]
[1767633279924,11.47302991,135.13,135.11,33.59556974]
[1767633280467,11.47302991,135.13,135.1,0.67155637]
[1767633280646,7.68325158,135.13,135.1,0.67155637]
[1767633281445,0.28291101,135.13,135.1,0.67155637]
[1767633283644,11.8748822,135.14,135.1,0.67155637]
[1767633283847,4.06986714,135.13,135.1,0.67155637]
[1767633285558,0.28409907,135.11,135.08,0.67155637]
[1767633285845,3.78977833,135.12,135.08,0.67155637]
[1767633287622,4.47494365,135.12,135.08,0.67155637]
[1767633287837,11.87603662,135.12,135.08,0.67155637]
[1767633288430,7.40048463,135.13,135.08,0.67155637]
[1767633288631,25.35495364,135.14,135.09,0.67155637]
[1767633289032,101.025,135.19,135.11,0.67155637]
[1767633289351,3.78977833,135.16,135.11,0.67155637]
[1767633289722,11.40958142,135.16,135.11,0.67155637]
[1767633289951,4.47029888,135.15,135.11,0.67155637]
[1767633290248,11.87405792,135.16,135.11,0.67155637]
[1767633292252,13.48,135.17,135.12,0.67155637]
[1767633292461,7.39767824,135.18,135.12,0.67155637]
[1767633293126,7.61836706,135.18,135.12,0.67155637]
[1767633293662,11.40814539,135.18,135.13,0.65519623]
[1767633296541,3.78977833,135.17,135.13,0.65519623]
[1767633300266,11.18793849,135.17,135.13,0.65519623]
[1767633301064,0.22979395,135.13,135.09,0.65449536]
[1767633301449,0.67150647,135.12,135.08,12.91802124]
[1767633301644,0.69956443,135.16,135.1,0.65449536]
[1767633301860,24.66793849,135.17,135.12,0.65449536]
[1767633302253,20.87816016,135.17,135.12,0.65449536]
[1767633302459,24.66793849,135.17,135.12,0.65449536]
[1767633302655,7.39763916,135.18,135.12,0.65449536]
[1767633302856,11.18741749,135.18,135.13,0.65449536]
[1767633303053,11.88205061,135.18,135.13,0.65449536]
[1767633303777,3.78977833,135.17,135.13,0.65449536]
[1767633305275,7.39763916,135.18,135.13,0.65449536]
[1767633305483,11.18741749,135.18,135.13,0.65449536]
[1767633305657,3.78977833,135.2,135.15,0.65449536]
[1767633305860,3.99621203,135.2,135.15,0.65449536]
[1767633306260,7.39607205,135.21,135.15,0.65449536]
[1767633306771,11.18585038,135.21,135.15,0.65449536]
[1767633307183,11.18585038,135.21,135.16,0.65449536]
[1767633308864,11.88091463,135.2,135.16,0.65449536]
[1767633309585,4.00109402,135.19,135.15,0.65449536]
[1767633309884,3.78977833,135.18,135.15,0.65449536]
[1767633310067,3.78977833,135.19,135.15,0.65449536]
[1767633310680,4.48934276,135.22,135.16,0.65449536]
[1767633310886,3.78977833,135.23,135.18,0.65449536]
[1767633311091,4.48441145,135.23,135.18,0.65449536]
[1767633311561,4.47957828,135.21,135.17,0.65449536]
[1767633311869,4.47484129,135.19,135.15,0.65449536]
[1767633312870,3.78977833,135.18,135.15,0.65449536]
[1767633313272,4.01056848,135.18,135.14,14.13449536]
[1767633313684,4.01056848,135.18,135.14,0.65449536]
[1767633313886,4.47019856,135.17,135.13,0.65449536]
[1767633314789,11.86840417,135.17,135.13,0.65449536]
[1767633315280,3.78977833,135.16,135.13,0.65449536]
[1767633315988,11.86840417,135.17,135.13,0.65449536]
[1767633319680,4.01516478,135.16,135.12,0.65449536]
[1767633320588,11.41394682,135.16,135.12,0.65449536]
[1767633320765,3.78977833,135.15,135.12,0.65449536]
[1767633321182,11.41394682,135.16,135.12,0.65449536]
[1767633321995,0.6758699,135.15,135.12,0.65449536]
[1767633322688,8.09834647,135.16,135.12,0.65449536]
[1767633322890,10.52666039,135.16,135.12,0.65449536]
[1767633323087,0.69463312,135.14,135.11,13.48]
[1767633323279,0.63463313,135.14,135.1,0.65449536]
[1767633324593,3.06294705,135.14,135.1,0.65449536]
[1767633324790,3.06294705,135.14,135.09,12.91752388]
[1767633324791,2.42831392,135.13,135.09,0.65449536]
[1767633324985,2.42831392,135.12,135.08,0.65449536]
[1767633325906,2.57534763,135.12,135.08,0.65449536]
[1767633326910,3.12235304,135.11,135.07,0.65449536]
[1767633328393,0.68862377,135.09,135.06,0.1]
[1767633328579,0.09790927,135.08,135.06,0.1]
[1767633328775,9.92962502,135.08,135.06,0.1]
[1767633329199,7.5013111,135.08,135.06,0.1]
[1767633329397,9.92962502,135.08,135.06,0.1]
[1767633329577,9.83171575,135.08,135.03,0.1]
[1767633330093,2.42831392,135.07,135.03,0.1]
[1767633330296,2.42831392,135.07,135.03,0.75449536]
[1767633330494,10.41984339,135.08,135.03,0.75449536]
[1767633331487,2.52731392,135.07,135.03,0.75449536]
[1767633331693,0.58323636,135.06,135.03,0.1]
[1767633332081,3.01155028,135.06,135.03,0.1]
[1767633332684,0.10384236,135.05,135.03,0.1]
[1767633332907,9.93709984,135.05,135.03,0.1]
[1767633333203,2.90775634,135.04,134.99,14.28402888]
[1767633333382,2.81644156,135.03,134.99,0.78402888]
[1767633334384,2.42831392,135.03,134.99,0.78402888]
[1767633335101,7.40543987,135.04,134.99,0.78402888]
[1767633335296,9.83375379,135.04,134.99,0.78402888]
[1767633335504,2.42831392,135.03,134.99,0.78402888]
[1767633336307,2.81355028,135.03,134.99,0.78402888]
[1767633336499,2.81355028,135.03,134.99,0.1]
[1767633336500,2.81071654,135.01,134.99,0.1]
[1767633337211,10.21803354,135.01,134.99,0.1]
[1767633337987,7.78971962,135.01,134.97,0.1]
[1767633338301,2.36831393,135.0,134.97,0.1]
[1767633338913,2.30831394,135.0,134.97,0.1]
[1767633339118,7.78971962,135.01,134.97,0.1]
[1767633339320,2.42831392,135.0,134.97,0.78402888]
[1767633339697,10.21803354,135.01,134.97,0.78402888]
[1767633340103,2.42831392,135.0,134.97,0.78402888]
[1767633341092,9.83589836,135.0,134.97,0.78402888]
[1767633341504,7.40647792,135.02,134.97,0.78402888]
[1767633341711,2.42831392,134.99,134.97,0.1]
[1767633342093,2.42831392,134.98,134.94,0.68402888]
[1767633342303,2.36831393,134.98,134.95,0.68402888]
[1767633342503,0.10466776,134.99,134.95,0.68402888]
[1767633342704,2.42831392,134.98,134.95,0.68402888]
[1767633343415,9.94100926,134.99,134.95,0.68402888]
[1767633345328,15.92831392,135.0,134.95,0.68402888]
[1767633345507,0.38812764,135.01,134.95,0.68402888]
[1767633345508,15.92831392,135.01,134.95,0.68402888]
[1767633345697,2.52731392,135.02,134.96,5.51529]
[1767633345899,110.85927425,135.03,134.97,0.68402888]
[1767633346699,108.43096033,135.03,134.98,0.68402888]
[1767633347024,0.099,135.03,134.92,61.7]
[1767633347224,0.38523636,135.0,134.96,0.68402888]
[1767633347440,0.38523636,135.0,134.92,19.11529]
[1767633347441,2.42831392,134.98,134.94,0.68402888]
[1767633349206,2.42831392,134.99,134.94,0.68402888]
[1767633350028,9.83624651,135.0,134.95,0.68402888]
[1767633351215,2.42831392,134.99,134.95,0.68402888]
[1767633352227,9.83624651,135.0,134.95,0.68402888]
[1767633353239,2.42831392,135.0,134.95,0.68402888]
[1767633354530,9.83472668,135.02,134.96,0.67697891]
[1767633355721,9.83472668,135.02,134.97,0.67697891]
[1767633355920,2.42831392,135.01,134.97,0.67697891]
[1767633356929,9.83472668,135.02,134.97,0.67697891]
[1767633357129,110.85921075,135.03,134.98,0.67697891]
[1767633357346,9.83421075,135.03,134.98,0.67697891]
[1767633357513,15.92831392,135.04,134.98,0.67697891]
[1767633357914,2.42831392,135.03,134.98,0.67697891]
[1767633359746,23.4326153,135.04,134.99,0.67697891]
[1767633360248,2.42831392,135.03,134.99,0.67697891]
[1767633361741,101.025,135.06,135.0,0.71659267]
[1767633361742,9.83255111,135.06,135.0,0.71659267]
[1767633361942,2.42831392,135.04,135.0,0.71659267]
[1767633362139,2.42831392,135.03,135.0,0.71659267]
[1767633362313,2.81355028,135.05,135.0,0.71659267]
[1767633362523,2.42831392,135.04,135.0,0.71659267]
[1767633362826,2.42831392,135.03,135.0,0.71659267]
[1767633363027,2.42831392,135.03,134.99,0.71659267]
[1767633363429,2.42831392,135.02,134.99,0.71659267]
[1767633363831,7.78828528,135.03,134.99,0.71659267]
[1767633364028,10.2165992,135.03,134.99,0.71659267]
[1767633365448,7.40411668,135.06,135.0,0.71659267]
[1767633365655,9.8324306,135.06,135.0,0.71659267]
[1767633367045,9.8324306,135.06,135.01,0.71659267]
[1767633367427,23.43105427,135.07,135.01,0.71659267]
[1767633368043,2.53017628,135.05,135.01,0.71659267]
[1767633368730,2.53298168,135.03,134.99,0.71659267]
[1767633369037,9.83352719,135.04,134.99,0.71659267]
[1767633369227,7.40521327,135.04,135.0,0.71659267]
[1767633369549,9.83352719,135.04,135.0,0.71659267]
[1767633369940,7.50421327,135.04,135.0,0.71659267]
[1767633370146,9.93252719,135.04,135.0,0.71659267]
[1767633370744,0.099,135.05,135.0,0.71659267]
[1767633370935,2.42831392,135.04,135.0,0.71659267]
[1767633371753,2.81355028,135.04,135.0,0.71659267]
[1767633372248,10.21899082,135.04,135.0,0.71659267]
[1767633374426,0.10186236,135.03,134.99,0.71659267]
[1767633374630,0.38240262,135.02,134.98,0.71659267]
[1767633374840,2.81644156,135.03,134.98,0.71659267]
[1767633375437,7.4049282,135.05,135.01,0.71659267]
[1767633375841,9.83324212,135.05,135.01,0.71659267]
[1767633376041,9.93510448,135.05,135.01,0.71659267]
[1767633376836,2.53298168,135.03,134.99,0.71659267]
[1767633377934,2.42831392,135.01,134.97,0.71659267]
[1767633378131,2.80254921,134.98,134.94,0.71659267]